Cogmind - Beta 11 X8 *** ADVENTURER MODE // 2021.11.03 @ 21:11:30 // Winter2019/RPGLIKE Player: Salamander Result: Destroyed by L-31 Rogue with Katana Performance ------------- Evolutions (2) 1000 Regions Visited (5) 1000 Robots Destroyed (46) 230 Value Destroyed (899) 899 Prototype IDs (26) 520 Alien Tech Used (0) 0 Bonus (318) 318 TOTAL SCORE: 3967 Bonus ------- High Alert Combat Kills 18 Aligned with FarCom 300 Cogmind --------- Core Integrity 0/700 Matter 300/300 Energy 190/190 System Corruption 0% Temperature Cool (9) Movement Hovering (48) Location -8/Materials Parts ------- > --- POWER (1) -------- Light Deuterium Engine > --- PROPULSION (4) --- Improved Hover Unit Improved Hover Unit Improved Hover Unit Improved Hover Unit > --- UTILITY (4) ------ Cooling System Improved Light Armor Plating Supersonic Drone Bay (1/1) > --- WEAPON (2) ------- Light Assault Rifle Mining Claw > --- INVENTORY (3) ---- Protomatter-56 Protomatter-47 Protomatter-33 Peak State ------------ > --- POWER ------------ Light Deuterium Engine > --- PROPULSION ------- Improved Hover Unit Improved Hover Unit Improved Hover Unit Improved Hover Unit > --- UTILITY ---------- Cooling System Improved Terrain Scanner Improved Light Armor Plating Supersonic Drone Bay > --- WEAPON ----------- Light Assault Rifle Mining Claw > --- INVENTORY -------- Protomatter Protomatter PSU Rigger [Rating: 30] Favorites ----------- Power Light Deuterium Engine Engine Light Deuterium Engine Power Core Light Nuclear Core Propulsion Improved Hover Unit Leg Aluminum Leg Hover Unit Improved Hover Unit Flight Unit Flight Unit Utility Improved Light Armor Plating Device Improved Terrain Scanner Processor Seismic Analyzer Protection Improved Light Armor Plating Weapon Light Assault Rifle Energy Gun Medium Laser Ballistic Gun Light Assault Rifle Slashing Weapon Mining Claw Build | -11 -10 -10 -10 -9 -8 ------- Run | Scr Mat Min Exi Min Mat Slots Evolved 7 | 3 1 1 . 1 1 Power . | . . . . . . Propulsion 3 | 1 1 . . 1 . Utility 3 | 1 . 1 . . 1 Weapon 1 | 1 . . . . . Parts Attached 25 | 7 9 4 1 1 3 Power 6 | 2 . 2 . . 2 Engine 5 | 2 . 1 . . 2 Core 1 | . . 1 . . . Reactor . | . . . . . . Propulsion 9 | 2 6 . . 1 . Treads . | . . . . . . Leg 2 | 2 . . . . . Wheel . | . . . . . . Hover 5 | . 4 . . 1 . Flight 2 | . 2 . . . . Utility 7 | 1 2 2 1 . 1 Device 4 | . 1 1 1 . 1 Storage . | . . . . . . Processor 1 | 1 . . . . . Hackware . | . . . . . . Protection 2 | . 1 1 . . . Artifact . | . . . . . . Weapon 3 | 2 1 . . . . Energy Gun 1 | 1 . . . . . Energy Cannon . | . . . . . . Ballistic Gun 1 | 1 . . . . . Ballistic Cannon . | . . . . . . Launcher . | . . . . . . Special Weapon . | . . . . . . Impact Weapon . | . . . . . . Slashing Weapon 1 | . 1 . . . . Piercing Weapon . | . . . . . . Special Melee Weapon . | . . . . . . Unidentified Prototypes 1 | . . . . . 1 Parts Lost 1 | . . . . . 1 Power . | . . . . . . Propulsion . | . . . . . . Utility 1 | . . . . . 1 Weapon . | . . . . . . Highest Loss Streak 1 | . . . . . 1 Average Slot Usage (%) 90 | . 83 92 94 100 97 Engine 11 | . 13 10 11 10 9 Leg 2 | . 5 . . . . Hover 25 | . 10 34 33 40 36 Flight 3 | . 8 . . . . Device 11 | . 2 11 17 20 24 Processor 5 | . 13 . . . . Protection 6 | . . 11 11 10 9 Energy Gun 5 | . 13 . . . . Ballistic Gun 11 | . 13 11 11 10 9 Slashing Weapon 6 | . . 11 11 10 9 Naked Turns . | . . . . . . Heaviest Build 15 | 8 10 12 13 13 15 Greatest Support 33 | 25 26 26 26 33 33 Greatest Overweight (x) . | . . . . . . Average Overweight (x) . | . . . . . . Largest Inventory Capacity 3 | 3 3 3 3 3 3 Average Capacity 2 | 2 3 3 3 3 3 Most Carried 3 | . 3 3 3 3 3 Average Carried 1 | . 1 2 3 2 2 Final Capacity 3 | 3 3 3 3 3 3 Final Carried 3 | . 2 3 3 2 3 Class Distribution -------------------- 44% | Scout 40% | Mutant 14% | Hacker-Scout Dominant Class ---------------- Mutant | -10/Materials Scout | -10/Mines Scout | -10/Exiles Scout | -9/Mines Hacker-Scout | -8/Materials Resources | -11 -10 -10 -10 -9 -8 ----------- Run | Scr Mat Min Exi Min Mat Matter Collected 532 | 294 117 71 10 . 40 Remotely . | . . . . . . Salvage Created 1050 | 260 472 212 . . 106 Parts 92 | 14 39 21 . . 18 Haulers Intercepted 2 | . 2 . . . . Recyclers Shooed 2 | 1 . 1 . . . Parts Field Recycled . | . . . . . . Retrieved Matter . | . . . . . . Parts Self-Destructed . | . . . . . . Prevented . | . . . . . . Kills | -11 -10 -10 -10 -9 -8 ------- Run | Scr Mat Min Exi Min Mat Combat Hostiles Destroyed 29 | . 14 9 . . 6 Melee 15 | . . 9 . . 6 Guns 14 | . 14 . . . . Classes Destroyed 11 | 3 5 1 . . 2 Worker 2 | 2 . . . . . Tunneler 6 | 5 . 1 . . . Hauler 2 | . 2 . . . . Recycler 2 | 1 . 1 . . . Mechanic 1 | . 1 . . . . Watcher 4 | . 3 . . . 1 Swarmer 14 | . 8 5 . . 1 Grunt 12 | . 6 3 . . 3 Sentry 1 | . . . . . 1 Demolisher 1 | . . 1 . . . Hunter 1 | . . . . . 1 Best Kill Streak 7 | 7 6 3 . . 4 Combat Bots Only 6 | . 6 3 . . 4 Max Kills in Single Turn 2 | 1 2 1 . . 1 Gunslinging 1 | . 1 . . . . Exploded . | . . . . . . Melee 1 | . . 1 . . 1 Uniques/NPCs Destroyed . | . . . . . . Combat | -11 -10 -10 -10 -9 -8 -------- Run | Scr Mat Min Exi Min Mat Damage Taken 1785 | . 326 313 . . 1146 Core 1356 | . 260 217 . . 879 Absorbed by Shields . | . . . . . . Redirected to Core 1001 | . 198 157 . . 646 Core Remaining (%) 98 | 100 . . . 96 . Volleys Fired 82 | 24 57 1 . . . Largest 2 | 2 2 1 . . . Hottest 70 | 70 70 20 . . . Shots Fired 148 | 35 112 1 . . . Gun 148 | 35 112 1 . . . Cannon . | . . . . . . Launcher . | . . . . . . Special . | . . . . . . Kinetic 82 | 24 57 1 . . . Thermal 66 | 11 55 . . . . Explosive . | . . . . . . Electromagnetic . | . . . . . . Robot Hit Streak 18 | 18 16 . . . . Robot Miss Streak 2 | 1 2 1 . . . Penetration Max . | . . . . . . Secondary Targets 4 | . 4 . . . . Max Gunslinging Chain 1 | . 1 . . . . Shots Hit Robots 160 | 30 84 22 . . 24 Core Hits 69 | 14 31 12 . . 12 Critical Kills . | . . . . . . Critical Parts Destroyed . | . . . . . . Critical Strikes 9 | 3 6 . . . . Burn 9 | 3 6 . . . . Melee Attacks 58 | . . 23 2 . 33 Impact . | . . . . . . Slashing 58 | . . 23 2 . 33 Piercing . | . . . . . . Sneak Attacks 4 | . . 4 . . . Combat Hostiles . | . . . . . . Follow-up Attacks . | . . . . . . Damage Inflicted 2471 | 284 889 721 . . 577 Guns 1173 | 284 889 . . . . Cannons . | . . . . . . Explosions . | . . . . . . Melee 1298 | . . 721 . . 577 Ramming . | . . . . . . Kinetic 493 | 162 331 . . . . Thermal 680 | 122 558 . . . . Explosive . | . . . . . . Electromagnetic . | . . . . . . Impact . | . . . . . . Slashing 1298 | . . 721 . . 577 Piercing . | . . . . . . Highest Corruption . | . . . . . . Average Corruption . | . . . . . . Corruption Purged . | . . . . . . Overload Shots . | . . . . . . Overflow Damage 139 | . . 127 . . 12 Projectiles . | . . . . . . Explosions . | . . . . . . Melee 139 | . . 127 . . 12 Knockbacks . | . . . . . . Impact . | . . . . . . Kinetic . | . . . . . . Secondary . | . . . . . . Self-Inflicted Damage . | . . . . . . Shots . | . . . . . . Rammed . | . . . . . . Targets Rammed . | . . . . . . Kicked . | . . . . . . Crushed . | . . . . . . Highest Temperature 44 | 12 44 6 . . . Average Temperature 8 | 5 9 6 . . . Received Heat Transfer 549 | . 84 141 . . 324 Siege Activations . | . . . . . . Robots Corrupted . | . . . . . . Combat Hostiles . | . . . . . . Parts Fried . | . . . . . . Impact Corruptions . | . . . . . . Robots Melted . | . . . . . . Combat Hostiles . | . . . . . . Parts Melted 6 | 2 4 . . . . Heat Transferred 2664 | 592 2072 . . . . Parts Sabotaged . | . . . . . . Parts Stolen . | . . . . . . Parts Stripped . | . . . . . . Power Chain Reactions . | . . . . . . Missiles Intercepted . | . . . . . . Alert | -11 -10 -10 -10 -9 -8 ------- Run | Scr Mat Min Exi Min Mat Peak Influence 510 | 40 510 377 . . 223 Initial 112 | . 22 112 . . . Average 192 | 20 235 291 . . 117 Maximum Alert Level 2 | . 2 1 . . 1 Low Security (%) 54 | 100 42 24 . 100 80 Level 1 36 | . 35 75 . . 19 Level 2 8 | . 22 . . . . Level 3 . | . . . . . . Level 4 . | . . . . . . Level 5 . | . . . . . . High Security . | . . . . . . Max Security . | . . . . . . Squads Dispatched 6 | . 2 1 . . 3 Investigation 5 | . 2 1 . . 2 Extermination . | . . . . . . Reinforcement 1 | . . . . . 1 Assault . | . . . . . . Garrison . | . . . . . . Intercept . | . . . . . . Construction Impeded . | . . . . . . Haulers Reinforced . | . . . . . . Active Scanning Responses . | . . . . . . Cargo Convoy Interrupts . | . . . . . . Stealth | -11 -10 -10 -10 -9 -8 --------- Run | Scr Mat Min Exi Min Mat Distress Signals 1 | . 1 . . . . Communications Jammed . | . . . . . . Distress Signals . | . . . . . . Times Spotted 49 | . 23 10 . . 16 Peak Tracking Total 9 | . 7 3 6 . 9 Tactical Retreats 1 | . 1 . . . . Traps | -11 -10 -10 -10 -9 -8 ------- Run | Scr Mat Min Exi Min Mat Traps Triggered 2 | . 2 . . . . Indirectly . | . . . . . . Trap Hack Attempts . | . . . . . . Triggered . | . . . . . . Disarmed . | . . . . . . Reprogrammed 5 | . 5 . . . . Reused . | . . . . . . Traps Extracted . | . . . . . . Installed . | . . . . . . Triggered . | . . . . . . Machines | -11 -10 -10 -10 -9 -8 ---------- Run | Scr Mat Min Exi Min Mat Machines Disabled 2 | . . . 2 . . Max in Single Turn 1 | . . . 1 . . Machines Sabotaged . | . . . . . . Garrisons Compromised . | . . . . . . Overloaded Fab Kills . | . . . . . . Hacking | -11 -10 -10 -10 -9 -8 --------- Run | Scr Mat Min Exi Min Mat Machines Accessed 13 | . 8 1 2 . 2 Terminals 9 | . 7 . . . 2 Fabricators . | . . . . . . Repair Stations . | . . . . . . Recycling Units 1 | . 1 . . . . Scanalyzers . | . . . . . . Garrison Access . | . . . . . . Total Hacks 42 | . 29 1 2 . 10 Successful 34 | . 23 1 2 . 8 Failed 8 | . 6 . . . 2 Catastrophic . | . . . . . . Database Lockouts . | . . . . . . Manual 22 | . 13 . 1 . 8 Terminals 38 | . 28 . . . 10 Fabricators . | . . . . . . Repair Stations . | . . . . . . Recycling Units 1 | . 1 . . . . Scanalyzers . | . . . . . . Garrison Access . | . . . . . . Terminal Hacks 17 | . 11 1 2 . 3 Record 1 | . . . 1 . . Prototype ID Bank 1 | . . . . . 1 Open Door 1 | . . 1 . . . Machine Index 1 | . 1 . . . . Alert Level 1 | . 1 . . . . Locate Traps 3 | . 2 . . . 1 Reprogram Traps 2 | . 2 . . . . Hauler Manifests 2 | . 1 . . . 1 Registered Components 1 | . 1 . . . . Zone Layout 3 | . 3 . . . . EX-Prototype ID Bank 1 | . . . 1 . . Fabricator Hacks . | . . . . . . Repair Station Hacks . | . . . . . . Recycling Unit Hacks . | . . . . . . Scanalyzer . | . . . . . . Garrison Access Hacks . | . . . . . . Unauthorized Hacks 17 | . 12 . . . 5 Terminals 16 | . 11 . . . 5 Track 6 | . 5 . . . 1 Botnet 6 | . 5 . . . 1 Operators 2 | . 1 . . . 1 Sabotage 1 | . . . . . 1 Search 1 | . . . . . 1 Fabricators . | . . . . . . Repair Stations . | . . . . . . Recycling Units 1 | . 1 . . . . Tunnel 1 | . 1 . . . . Scanalyzers . | . . . . . . Garrison Access . | . . . . . . Data Cores Recovered . | . . . . . . Used . | . . . . . . Hacking Detections 7 | . 7 . . . . Full Trace Events . | . . . . . . Feedback Events . | . . . . . . Feedback Blocked . | . . . . . . Robot Schematics Acquired . | . . . . . . Robots Built . | . . . . . . Authchips . | . . . . . . Time . | . . . . . . Total Robot Build Rating . | . . . . . . Part Schematics Acquired . | . . . . . . Parts Built . | . . . . . . Authchips . | . . . . . . Time . | . . . . . . Total Part Build Rating . | . . . . . . Parts Repaired . | . . . . . . Time . | . . . . . . Parts Recycled . | . . . . . . Recycled Matter . | . . . . . . Retrieved Matter . | . . . . . . Retrieved Components . | . . . . . . Parts Scanalyzed . | . . . . . . Part Schematics Acquired . | . . . . . . Parts Damaged . | . . . . . . Bothacking | -11 -10 -10 -10 -9 -8 ------------ Run | Scr Mat Min Exi Min Mat Used RIF Installer . | . . . . . . Robots Hacked . | . . . . . . Non-combat . | . . . . . . Combat . | . . . . . . Robot Hacks Applied . | . . . . . . Relay Couplers Released . | . . . . . . Robots Rewired . | . . . . . . Allies Hacked . | . . . . . . Hacks Repelled . | . . . . . . Allies | -11 -10 -10 -10 -9 -8 -------- Run | Scr Mat Min Exi Min Mat Total Allies 2 | . . 2 . . . Largest Group 2 | . . 2 2 . . Highest-Rated Group 47 | . . 47 47 . . Highest-Rated Ally 31 | . . 31 31 . . Total Orders . | . . . . . . Ally Attacks . | . . . . . . Total Damage . | . . . . . . Kills . | . . . . . . Allies Corrupted . | . . . . . . Allies Melted . | . . . . . . Intel | -11 -10 -10 -10 -9 -8 ------- Run | Scr Mat Min Exi Min Mat Robot Analysis Total . | . . . . . . Derelict Logs Recovered 2 | . . 2 . . . Drone Launches . | . . . . . . Drone Recoveries . | . . . . . . Exploration | -11 -10 -10 -10 -9 -8 ------------- Run | Scr Mat Min Exi Min Mat Turns Passed 1424 | 177 493 314 188 26 226 Spaces Moved 1509 | 52 523 349 317 52 216 Core 6 | 6 . . . . . Treads . | . . . . . . Legs 106 | 46 60 . . . . Wheels . | . . . . . . Hover 1184 | . 250 349 317 52 216 Flight 213 | . 213 . . . . Fastest Speed 37 | 50 37 52 52 48 48 Average Speed 54 | 111 56 52 52 48 48 Slowest Speed 120 | 120 120 52 52 52 48 Overloaded Moves . | . . . . . . Propulsion Burnouts . | . . . . . . Robots Hopped 1 | . 1 . . . . Cave-ins Triggered 1 | . . . . . 1 Exploration Rate (%) 43 | 3 92 65 64 18 21 Regions Visited 5 Branch Regions 3 Pre-discovered Areas 3 | . 1 1 1 . . Known Exits Taken . | . . . . . . Unknown Exits Taken 5 | 1 1 1 1 1 . Scrap Searched 1 | . . . . 1 . Spaces Dug 2 | . . . . . 2 Terrain Destroyed 2 | . . . . . 2 Melee 2 | . . . . . 2 Projectile . | . . . . . . AOE . | . . . . . . Terrain Rammed . | . . . . . . Walls Destroyed . | . . . . . . Machines Disabled . | . . . . . . Actions | -11 -10 -10 -10 -9 -8 --------- Run | Scr Mat Min Exi Min Mat Total 1853 | 137 621 434 335 52 274 Wait 113 | 54 6 39 13 . 1 Move 1502 | 51 520 348 316 51 216 Hop 1 | . 1 . . . . Pick Up 9 | . 4 1 1 . 3 Fast Attach 22 | 7 7 4 1 . 3 Attach 3 | . 2 . . 1 . Detach 1 | . 1 . . . . Swap . | . . . . . . Drop 18 | 1 7 5 1 . 4 Fire 82 | 24 57 1 . . . Melee 58 | . . 23 2 . 33 Ram . | . . . . . . Kick . | . . . . . . Crush . | . . . . . . Escape Stasis . | . . . . . . Rewire . | . . . . . . Trap . | . . . . . . Miscellaneous 44 | . 16 13 1 . 14 Route ------- -11/Scrapyard -10/Materials (discovered 5 exits: [*Mat x3] / *Min x2) -10/Mines (discovered 3 exits: [*Mat x2] / *Exi) -10/Exiles (discovered 2 exits: [*Min x2]) -9/Mines -8/Materials History --------- Turn | Location | Event 2 | -11/Scrapyard | Met Revision 17 3 | -11/Scrapyard | Upgraded with Propulsion slot (x1) 3 | -11/Scrapyard | Upgraded with Utility slot (x1) 3 | -11/Scrapyard | Upgraded with Weapon slot (x1) 10 | -11/Scrapyard | Discovered new exit (range 14) 178 | -11/Scrapyard | Entered Materials 256 | -10/Materials | Discovered new exit (range 6) 287 | -10/Materials | Discovered new exit (range 18) 311 | -10/Materials | Build established: Mutant 468 | -10/Materials | Reached level 2 492 | -10/Materials | Discovered new exit (range 14) 607 | -10/Materials | Discovered new exit (range 4) 632 | -10/Materials | Discovered new exit (range 11) 661 | -10/Materials | Upgraded with Propulsion slot (x1) 671 | -10/Materials | Entered Mines 702 | -10/Mines | Met a Derelict bent on vengeance 720 | -10/Mines | Met a Derelict shopkeep closing up shop 755 | -10/Mines | Discovered new exit (range 8) 763 | -10/Mines | Learned location of Zion (-6) 769 | -10/Mines | Reached level 3 790 | -10/Mines | Upgraded with Utility slot (x1) 870 | -10/Mines | Assembled infested the area 885 | -10/Mines | Build established: Scout 887 | -10/Mines | Discovered new exit (range 12) 960 | -10/Mines | Deemed a non-threat by the Exiles lab entrance 960 | -10/Mines | Discovered new exit (range 5) 985 | -10/Mines | Entered Exiles 985 | -10/Exiles | Accompanied by 2 allies 993 | -10/Exiles | Discovered new exit (range 17) 1012 | -10/Exiles | Met 8R-AWN 1015 | -10/Exiles | Led the pair of lost Derelicts to a safe place 1020 | -10/Exiles | Met EX-HEX 1035 | -10/Exiles | Met EX-BIN 1043 | -10/Exiles | Aligned with FarCom system 1043 | -10/Exiles | Given EX-Vault access code 1055 | -10/Exiles | Opened EX-Vault 1058 | -10/Exiles | Found PSU Rigger 1060 | -10/Exiles | Found Supersonic Drone Bay 1091 | -10/Exiles | Warned to stay clear of 0b10 Research branches 1106 | -10/Exiles | Met EX-DEC 1154 | -10/Exiles | Attacked by the Exiles 1169 | -10/Exiles | Discovered new exit (range 10) 1173 | -10/Exiles | Stole two prototypes: Supersonic Drone Bay, PSU Rigger 1173 | -10/Exiles | Entered Mines 1175 | -9/Mines | Reached level 4 1176 | -9/Mines | Upgraded with Propulsion slot (x1) 1179 | -9/Mines | Found a damaged Exp. Sensor Array with a note attached 1194 | -9/Mines | Discovered new exit (range 11) 1199 | -9/Mines | Entered Materials 1201 | -8/Materials | Reached level 5 1201 | -8/Materials | Reached level 6 1201 | -8/Materials | Upgraded with Utility slot (x1) 1357 | -8/Materials | Crushed by falling debris 1369 | -8/Materials | Core integrity fell below 50% 1419 | -8/Materials | Core integrity fell below 20% 1425 | -8/Materials | Destroyed by L-31 Rogue with Katana Last Messages --------------- 01329_ Dropped PSU Rigger. 01330_ Acquired Protomatter-47. 01330_ R-06 Scavenger collects Particle Gun. 01340_ Connecting with Terminal... >>Force(Sabotage) SYSTEM_VULNERABLE[Nuclear Reactor] NETWORK_OVERLOAD_FAIL 01340_ ALERT: Suspicious activity at Terminal M006. Dispatching Investigation squad. 01357_ The unstable cave ceiling collapses. 01357_ Crushed by falling debris. 01365_ Penetrated by Slug. 01368_ Acquired 30 matter. 01375_ Slug penetrates Door. 01378_ Penetrated by Slug. 01382_ H-55 Commando destroyed. 01411_ S-10 Pest destroyed. 01413_ Critical hit (Destroy). 01420_ Imp. Terrain Scanner destroyed. 01424_ Critical hit (Burn: +37). Map ----- +----------------------------------------------------+ | | | | | | | ??????????????????????????????#???##?##??#?#???### | | ????????????????????#?????????????##?#??##?#???### | | ?????????????????????????????????#???###??#????### | | ??????????????????????#??##?#?###???????###????#?# | | ???????????????????????####??#?##?#?########?##??? | | ?????????????????????#?#?###??#######?###???#?#### | | ????????????????????????####?###?########?###?#### | | ????????????????#?????########?##########?###### | | ??????????????????? ######?############## | | ????????????????#?#?###### ### ? # #### | | ????????????#??########### ##### ##^ #### | | ???????????????? ## ###### # * ! # # | | ?????????????#? """ """ ## #### # !!! # # | | ???????????? ??"R """ # # # !!! + + | | ??????????? # """ """ + # !% # # | | ???????????" # # # # # # | | ???????????? # ! [ # ####### # # | | ???????????" ?# # ################# # | | ??????????? ??# ! # ######## ##### # | | ??????????+############## ######## # | | ???????? gg ! T ### | | ???????? s s = == #### #########? | | ???????? m *l@! s #####+############ | | ??????????+######+######/####* #### ### | | ?????????? ? # ##g ## #### ### | | ???????? ? ? # """## " ## #### ##? | | ?????????""???# """## T ## #### ### | | ???????? ??? # """## " ## #### ### | | ?????????"?? # """## ## #### ### | | ????????????? # ## ## #### ### | | ?????????????###?###?## # ########+######## | | ?????????????#######?## # o + | | ?????????######?####### + #### | | ??????????#?????########+### #### | | ????????????????######## ### ####### ##+#### | | ??????????? ##?##?###### ############### # | | ???????????????######### ###"########### # "" | | ?????????????##?#?#?#### +! # # "" | | ????????????##??##??########### # # "" | | ??????????????#?#?#?###?#####?# #=[ # [ | | ?????????? ?###??#?#??##??###?# #%* # | | ????????????????######??#?##### [=! + ""T"" | | ??????????? ??#??####?####?#### % # # """"" | | ?????????????#?##?##?#####?#### # # | | ?????????????#??####?##?#####?# ] # ####### | | ?????????????????####?######### # # | | ?????????????#?????#?##??######+######## # | +----------------------------------------------------+ Best States ------------- Heat Dissipation 59 Energy Generation 19 Energy Capacity 250 Matter Stores 300 Matter Capacity 300 Sight Range 18 Terrain Scan Range 16 Terrain Scan Density 310 Armor Coverage 150 Resistance: KI 30 Resistance: TH 30 Resistance: EX 30 Resistance: EM 20 Resistance: I 20 Resistance: S 20 Resistance: P 20 Propulsion Shielding 33 Evasion (%) 62 Offensive Hacking 20 Defensive Hacking 10 Item Schematics ----------------- None Robot Schematics ------------------ None Fabricated ------------ Nothing Alien Tech Used ----------------- None Achievements -------------- None Challenges ------------ None RPGLIKE | -11 -10 -10 -10 -9 -8 --------- Run | Scr Mat Min Exi Min Mat Levels Raised 5 | . 1 1 . 1 2 XP Earned 12949 | 4000 2094 1550 350 649 4306 XP Spent 11400 | 3980 1440 1450 . 1600 2930 Upgrades 34 | 14 5 4 . 3 8 Propulsion Slot 3 | 1 1 . . 1 . Utility Slot 3 | 1 . 1 . . 1 Weapon Slot 1 | 1 . . . . . Core Integrity 2 | 2 . . . . . Heat Dissipation 2 | 2 . . . . . Energy Generation 1 | 1 . . . . . Energy Storage 1 | . . . . . 1 Mass Support 1 | 1 . . . . . Inventory Capacity 3 | 3 . . . . . Sight Range 2 | 2 . . . . . Terrain Scan Density 3 | . 2 . . . 1 Melee Accuracy 2 | . 2 . . . . Hack Attack % 2 | . . . . . 2 Hack Defense % 2 | . . . . . 2 KI Resistance % 2 | . . 2 . . . TH Resistance % 2 | . . 1 . 1 . EX Resistance % 2 | . . . . 1 1 Protomatter Created 453 | . 148 92 . . 213 Integrity Restored 836 | . 296 248 15 . 277 Core 641 | . 260 178 15 . 188 Parts 195 | . 36 70 . . 89 Protomatter Decayed 16 | . 15 1 . . . Game ------ Seed RagnarokShockField Manual? 0 Play Time 00:20:08 Cumulative 136.9 hours Start 2021.11.03 @ 20:50:50 End 2021.11.03 @ 21:11:30 Sessions 1 Manual Loads 0 Difficulty Adventurer Special Mode Winter2019/RPGLIKE Game No. 121 Rogue 14 Adventurer 105 Explorer 2 Win Type - Total 7 Types 3/0/1/0/0/1/1/1/0 Lore% 71 Gallery% 78 Achievement% 71 Wizard Run 0 Options --------- ASCII 0 Keyboard 0 Movement Mouse Keybinds 0 Fullscreen 1 Font 24/Smallcaps Map View 76x50 Tactical HUD 1 Map Filters NONE Filters NONE Steam 1 RUN: dd57d05c-41b6-4436-82ea-fc1e36e095fe